Cogmind - Beta 14 @@@ ROGUE MODE // 2024.08.26 @ 22:11:54 Player: Olafz Result: Destroyed by EMP Trap Performance ------------- Evolutions (0) 0 Regions Visited (4) 800 Robots Destroyed (0) 0 Value Destroyed (0) 0 Prototype IDs (23) 460 Alien Tech Used (0) 0 Bonus (300) 300 TOTAL SCORE: 1560 Bonus ------- Aligned with FarCom 300 Cogmind --------- Core Integrity 0/250 Matter 290/300 Energy 18/100 System Corruption 6% Temperature Cool (0) Movement Core (50) Location -9/Mines Parts ------- > --- POWER (1) -------- (None) > --- PROPULSION (2) --- (None) > --- UTILITY (2) ------ Advanced Terrain Scan Processor > --- WEAPON (2) ------- (None) > --- INVENTORY (5) ---- AWS/Gauss Peak State ------------ > --- POWER ------------ (None) > --- PROPULSION ------- (None) > --- UTILITY ---------- Advanced Terrain Scan Processor > --- WEAPON ----------- (None) > --- INVENTORY -------- AWS/Gauss [Rating: 5] Favorites ----------- Power None Propulsion None Utility Advanced Terrain Scan Processor Processor Advanced Terrain Scan Processor Weapon None Build | -11 -10 -10 -10 -9 ------- Run | Yrd Mat Min Exi Min Slots Evolved . | . . . . . Power . | . . . . . Propulsion . | . . . . . Utility . | . . . . . Weapon . | . . . . . Parts Attached 1 | . . . . 1 Power . | . . . . . Engine . | . . . . . Core . | . . . . . Reactor . | . . . . . Propulsion . | . . . . . Treads . | . . . . . Leg . | . . . . . Wheel . | . . . . . Hover . | . . . . . Flight . | . . . . . Utility 1 | . . . . 1 Device . | . . . . . Storage . | . . . . . Processor 1 | . . . . 1 Hackware . | . . . . . Protection . | . . . . . Artifact . | . . . . . Weapon . | . . . . . Energy Gun . | . . . . . Energy Cannon . | . . . . . Ballistic Gun . | . . . . . Ballistic Cannon . | . . . . . Launcher . | . . . . . Special Weapon . | . . . . . Impact Weapon . | . . . . . Slashing Weapon . | . . . . . Piercing Weapon . | . . . . . Special Melee Weapon . | . . . . . Unidentified Prototypes . | . . . . . Corrupted Parts 1 | . . . . 1 System Corruption 4 | . . . . 4 Parts Lost . | . . . . . Power . | . . . . . Propulsion . | . . . . . Utility . | . . . . . Weapon . | . . . . . Highest Loss Streak . | . . . . . To Critical Strikes . | . . . . . Average Slot Usage (%) . | . . . . 1 Peak Build Rating 5 | . . . 1 5 Average Rating . | . . . . 1 On Entrance . | . . . . 1 Naked Turns 335 | . 29 116 109 81 Heaviest Build . | . . . . . Greatest Support 3 | 3 3 3 3 3 Greatest Overweight (x) . | . . . . . Average Overweight (x) . | . . . . . Largest Inventory Capacity 5 | 5 5 5 5 5 Average Capacity 5 | 5 5 5 5 5 Most Carried 2 | . . . 2 2 Average Carried . | . . . . 2 Final Capacity 5 | 5 5 5 5 5 Final Carried 2 | . . . 2 2 Class Distribution -------------------- 100% | Mutant Dominant Class ---------------- Mutant | -10/Materials Mutant | -10/Mines Mutant | -10/Exiles Mutant | -9/Mines Resources | -11 -10 -10 -10 -9 ----------- Run | Yrd Mat Min Exi Min Matter Collected 156 | 83 . 73 . . Remotely . | . . . . . Salvage Created . | . . . . . Parts . | . . . . . Haulers Intercepted . | . . . . . Recyclers Shooed . | . . . . . Parts Field Recycled . | . . . . . Retrieved Matter . | . . . . . Parts Self-Destructed . | . . . . . Prevented . | . . . . . Kills | -11 -10 -10 -10 -9 ------- Run | Yrd Mat Min Exi Min Combat Hostiles Destroyed . | . . . . . Classes Destroyed . | . . . . . Best Kill Streak . | . . . . . Combat Bots Only . | . . . . . Max Kills in Single Turn . | . . . . . Gunslinging . | . . . . . Exploded . | . . . . . Melee . | . . . . . Uniques/NPCs Destroyed . | . . . . . Combat | -11 -10 -10 -10 -9 -------- Run | Yrd Mat Min Exi Min Hostile Shots Fired 34 | . . 34 . . Missed 13 | . . 13 . . Damage Taken 253 | . . 241 . 12 Core 253 | . . 241 . 12 Absorbed by Shields . | . . . . . Core Remaining (%) 100 | 100 . . . . Volleys Fired . | . . . . . Largest . | . . . . . Hottest . | . . . . . Shots Fired . | . . . . . Gun . | . . . . . Cannon . | . . . . . Launcher . | . . . . . Special . | . . . . . Kinetic . | . . . . . Thermal . | . . . . . Explosive . | . . . . . Electromagnetic . | . . . . . Robot Hit Streak . | . . . . . Robot Miss Streak . | . . . . . Penetration Max . | . . . . . Secondary Targets . | . . . . . Shots Hit Robots . | . . . . . Core Hits 3 | . . 3 . . Critical Kills . | . . . . . Critical Parts Destroyed . | . . . . . Critical Strikes . | . . . . . Melee Attacks . | . . . . . Impact . | . . . . . Slashing . | . . . . . Piercing . | . . . . . Sneak Attacks . | . . . . . Combat Hostiles . | . . . . . Follow-up Attacks . | . . . . . Damage Inflicted 33 | . . 33 . . Guns . | . . . . . Cannons . | . . . . . Explosions . | . . . . . Melee . | . . . . . Ramming 33 | . . 33 . . Kinetic . | . . . . . Thermal . | . . . . . Explosive . | . . . . . Electromagnetic . | . . . . . Impact . | . . . . . Slashing . | . . . . . Piercing . | . . . . . Highest Corruption 6 | . . 2 2 6 Average Corruption 2 | . . 2 2 2 Corruption Purged . | . . . . . Corruption Blocked . | . . . . . Effects 3 | . . . 3 . Message Errors 2 | . . . 2 . Alerts 1 | . . . 1 . Overload Shots . | . . . . . Overflow Damage . | . . . . . Projectiles . | . . . . . Explosions . | . . . . . Melee . | . . . . . Knockbacks . | . . . . . Impact . | . . . . . Kinetic . | . . . . . Secondary . | . . . . . Self-Inflicted Damage 14 | . . 14 . . Shots . | . . . . . Rammed 14 | . . 14 . . Targets Rammed 14 | . . 14 . . Kicked . | . . . . . Crushed . | . . . . . Highest Temperature . | . . . . . Average Temperature . | . . . . . Received Heat Transfer 63 | . . 63 . . Siege Activations . | . . . . . Robots Corrupted . | . . . . . Combat Hostiles . | . . . . . Parts Fried . | . . . . . Impact Corruptions . | . . . . . Robots Melted . | . . . . . Combat Hostiles . | . . . . . Parts Melted . | . . . . . Heat Transferred . | . . . . . Parts Sabotaged . | . . . . . Parts Stolen . | . . . . . Parts Stripped . | . . . . . Power Chain Reactions . | . . . . . Alert | -11 -10 -10 -10 -9 ------- Run | Yrd Mat Min Exi Min Peak Influence 105 | . . 105 . . Initial . | . . . . . Average 23 | . . 48 . . Maximum Alert Level . | . . . . . Low Security (%) 100 | 100 100 100 . 100 Level 1 . | . . . . . Level 2 . | . . . . . Level 3 . | . . . . . Level 4 . | . . . . . Level 5 . | . . . . . High Security . | . . . . . Max Security . | . . . . . Squads Dispatched . | . . . . . Investigation . | . . . . . Extermination . | . . . . . Reinforcement . | . . . . . Assault . | . . . . . Garrison . | . . . . . Intercept . | . . . . . Searches Triggered . | . . . . . Construction Impeded . | . . . . . Haulers Reinforced . | . . . . . Active Scanning Responses . | . . . . . Cargo Convoy Interrupts . | . . . . . Stealth | -11 -10 -10 -10 -9 --------- Run | Yrd Mat Min Exi Min Distress Signals . | . . . . . Communications Jammed . | . . . . . Distress Signals . | . . . . . Times Spotted 10 | . 1 9 . . Peak Tracking Total 5 | . 2 5 . . Tactical Retreats 4 | . . 4 . . Traps | -11 -10 -10 -10 -9 ------- Run | Yrd Mat Min Exi Min Traps Triggered 1 | . . . . 1 Indirectly . | . . . . . Trap Hack Attempts . | . . . . . Triggered . | . . . . . Disarmed . | . . . . . Reprogrammed . | . . . . . Reused . | . . . . . Traps Extracted . | . . . . . Installed . | . . . . . Triggered . | . . . . . Machines | -11 -10 -10 -10 -9 ---------- Run | Yrd Mat Min Exi Min Machines Disabled . | . . . . . Max in Single Turn . | . . . . . Machines Repaired . | . . . . . Machines Dismantled . | . . . . . Machines Sabotaged . | . . . . . Overloaded Fab Kills . | . . . . . Hacking | -11 -10 -10 -10 -9 --------- Run | Yrd Mat Min Exi Min Machines Accessed 2 | . . . 1 1 Terminals . | . . . . . Fabricators . | . . . . . Repair Stations . | . . . . . Recycling Units . | . . . . . Scanalyzers . | . . . . . Garrison Access . | . . . . . Total Hacks 2 | . . . 1 1 Successful 2 | . . . 1 1 Failed . | . . . . . Catastrophic . | . . . . . Database Lockouts . | . . . . . Manual 1 | . . . 1 . Terminals . | . . . . . Fabricators . | . . . . . Repair Stations . | . . . . . Recycling Units . | . . . . . Scanalyzers . | . . . . . Garrison Access . | . . . . . Terminal Hacks 2 | . . . 1 1 Open Door 1 | . . . . 1 Derelict Proto ID Bank 1 | . . . 1 . Fabricator Hacks . | . . . . . Repair Station Hacks . | . . . . . Recycling Unit Hacks . | . . . . . Scanalyzer . | . . . . . Garrison Access Hacks . | . . . . . Unauthorized Hacks . | . . . . . Terminals . | . . . . . Fabricators . | . . . . . Repair Stations . | . . . . . Recycling Units . | . . . . . Scanalyzers . | . . . . . Garrison Access . | . . . . . Data Cores Recovered . | . . . . . Used . | . . . . . Hacking Detections . | . . . . . Full Trace Events . | . . . . . Feedback Events . | . . . . . Feedback Blocked . | . . . . . Robot Schematics Acquired . | . . . . . Robots Built . | . . . . . Authchips . | . . . . . Time . | . . . . . Total Robot Build Rating . | . . . . . Part Schematics Acquired . | . . . . . Parts Built . | . . . . . Authchips . | . . . . . Time . | . . . . . Total Part Build Rating . | . . . . . Parts Repaired . | . . . . . Time . | . . . . . Parts Recycled . | . . . . . Recycled Matter . | . . . . . Retrieved Matter . | . . . . . Retrieved Components . | . . . . . Parts Scanalyzed . | . . . . . Part Schematics Acquired . | . . . . . Parts Damaged . | . . . . . Bothacking | -11 -10 -10 -10 -9 ------------ Run | Yrd Mat Min Exi Min Used RIF Installer . | . . . . . Robots Hacked . | . . . . . Non-combat . | . . . . . Combat . | . . . . . Robot Hacks Applied . | . . . . . Relay Couplers Released . | . . . . . Fabnet Peak Effective % . | . . . . . Robots Rewired . | . . . . . Allies Hacked . | . . . . . Hacks Repelled . | . . . . . Allies | -11 -10 -10 -10 -9 -------- Run | Yrd Mat Min Exi Min Total Allies . | . . . . . Largest Group . | . . . . . Highest-Rated Group . | . . . . . Highest-Rated Ally . | . . . . . Total Orders . | . . . . . Ally Attacks . | . . . . . Total Damage . | . . . . . Kills . | . . . . . Allies Corrupted . | . . . . . Allies Melted . | . . . . . Intel | -11 -10 -10 -10 -9 ------- Run | Yrd Mat Min Exi Min Robot Analysis Total . | . . . . . Derelict Logs Recovered 2 | . . 1 . 1 Drone Launches . | . . . . . Drone Recoveries . | . . . . . Exploration | -11 -10 -10 -10 -9 ------------- Run | Yrd Mat Min Exi Min Turns Passed 349 | 9 29 116 109 86 Spaces Moved 656 | 18 58 199 215 166 Core 656 | 18 58 199 215 166 Treads . | . . . . . Legs . | . . . . . Wheels . | . . . . . Hover . | . . . . . Flight . | . . . . . Fastest Speed 50 | 50 50 50 50 50 Average Speed 50 | 50 50 50 50 50 Slowest Speed 50 | 50 50 50 50 50 Overloaded Moves . | . . . . . Propulsion Burnouts . | . . . . . Robots Hopped . | . . . . . Cave-ins Triggered . | . . . . . Exploration Rate (%) 37 | 3 21 57 61 45 Regions Visited 4 Branch Regions 3 Pre-discovered Areas . | . . . . . Known Exits Taken . | . . . . . Unknown Exits Taken 4 | 1 1 1 1 . Scrap Searched 3 | . . 3 . . Spaces Dug . | . . . . . Terrain Destroyed . | . . . . . Melee . | . . . . . Projectile . | . . . . . AOE . | . . . . . Terrain Rammed . | . . . . . Walls Destroyed . | . . . . . Machines Disabled . | . . . . . Actions | -11 -10 -10 -10 -9 --------- Run | Yrd Mat Min Exi Min Total 671 | 17 57 214 215 168 Wait 3 | . . 2 . 1 Move 652 | 17 57 198 214 166 Hop . | . . . . . Pick Up 1 | . . . 1 . Fast Attach 1 | . . . . 1 Attach . | . . . . . Detach . | . . . . . Swap . | . . . . . Drop . | . . . . . Fire . | . . . . . Melee . | . . . . . Ram 14 | . . 14 . . Kick . | . . . . . Crush . | . . . . . Escape Stasis . | . . . . . Rewire . | . . . . . Trap . | . . . . . Miscellaneous . | . . . . . Route ------- -11/Scrapyard -10/Materials -10/Mines (discovered 3 exits: [*Mat x2] / *Exi) -10/Exiles -9/Mines History --------- Turn | Location | Event 3 | -11/Scrapyard | Discovered new exit (range 15) 10 | -11/Scrapyard | Entered Materials 32 | -10/Materials | Discovered new exit (range 16) 39 | -10/Materials | Entered Mines 85 | -10/Mines | Discovered new exit (range 4) 127 | -10/Mines | Discovered new exit (range 8) 133 | -10/Mines | Core integrity fell below 50% 138 | -10/Mines | Core integrity fell below 20% 153 | -10/Mines | Deemed a non-threat by the Exiles lab entrance 153 | -10/Mines | Discovered new exit (range 5) 155 | -10/Mines | Entered Exiles 168 | -10/Exiles | Met 8R-AWN 177 | -10/Exiles | Met EX-HEX 191 | -10/Exiles | Met EX-BIN 198 | -10/Exiles | Aligned with FarCom system 198 | -10/Exiles | Given EX-Vault access code 210 | -10/Exiles | Opened EX-Vault 212 | -10/Exiles | Found AWS/Gauss 224 | -10/Exiles | Warned to stay clear of 0b10 Research branches 232 | -10/Exiles | Exiles lab attacked by MAIN.C 256 | -10/Exiles | Discovered new exit (range 14) 264 | -10/Exiles | Left Exiles lab with AWS/Gauss 264 | -10/Exiles | Entered Mines 290 | -9/Mines | Found a hidden stash of uninstalled traps 305 | -9/Mines | Build established: Mutant 323 | -9/Mines | Assembled infested the area 328 | -9/Mines | Assisted by a Guerilla fighting off Assembled 342 | -9/Mines | Met a Derelict who couldn't figure out how to use a Trap Extractor 350 | -9/Mines | Destroyed by EMP Trap Last Messages --------------- from, and they're closing on this area, come on!" Connecting with SHOP.Sys... Current location identified: Mines >>Open Door Sealed Doors opened. 77-2MP(g): "So I found this thing but I have no idea how to use it. And who the hell trapped this place to begin with?!" 77-2MP(g): "I give up! Here you try, I'm outta here before something nasty happens..." Tosses Imp. Trap Extractor to the ground. 77-2MP(g) triggered EMP Trap. A bubble of electromagnetic force engulfs the area. SHOP.Sys disabled. Machine disabled. Acquired Corrupted Adv. Terrain Scan Processor. Integrated Corrupted Adv. Terrain Scan Processor (+4). Complication: Energy sink damages Corrupted Adv. Terrain Scan Processor (-5). Triggered EMP Trap. A bubble of electromagnetic force engulfs the area. Map ----- +----------------------------------------------------+ | ### ?????????? ??????????? | | #### #?????????????? ?????????? | | #??## ### #??????????????? ####?????? | | #???### ###?????????????????? #?????? | | #?????## ## ?????????????????# #?????? | | #??????# ## ####?????????????# #?????? | | #??????# #?????????????# #?????? | | #??????## #?????????????# #?????? | | #???????## #### #?????????????# #?????? | | #####????#####?## ###???????????# #?????? | | ## ###???###### ##??????????# #?????? | | ##### ##???????### #?????? | | ## ##?????## ##????? | | ?## #?# & ##?#### ##???? | | ??## ##?# & & ### #???? | | ???## ### && #???? | | ????# ##### #???? | | ???## ##???## ##???? | | ??## #### ###?????####????? | | ??# """ ##??# ##???????????????? | | ??# """ #???# ##????????????????? | | ??# """ #???## ###?????????????????? | | ??# ##????## #########????????????? | | ?## ###??????#####""" ""#????????????? | | ## ##????????????#!/!!=!#????????????? | | ## ##??????????????#@^! #?????????????? | | ######?????????????###[ #?????????????? | | ##?????????????????## ## ###????????????? | | #?????????????????## #????????????? | | ##???????????????## ####?????????? | | #??????????????## ##????????? | | ##??????????????# #????????? | | #??????????????## g #????????? | | #####?????????## ##????????? | | ######???## ##?????????? | | ## ##### ###??????????? | | #### ##????????????? | | #### # ##?????????????? | | # ###### #??????????????? | | # #????# ##??????????????? | | ## ##????# ### #???????????????? | | ?## ##?????# ##?# #???????????????? | | ??##### #??????## #??# #???????????????? | | ??????# #???????# ?? ???????????????? | | ?????? ??????? ##?# ??????????????? | | ????? ?????? #??######?????????????? | | ???? ?????? ##?????????????????????? | | ???? #????? ##??????????????????????? | | ??? ##???? #???????????????????????? | | ?? ## #?????? ##???????????????????????? | +----------------------------------------------------+ Best States ------------- Heat Dissipation 25 Energy Generation 5 Energy Capacity 100 Matter Stores 300 Matter Capacity 300 Sight Range 16 Terrain Scan Density 210 Evasion (%) 50 Item Schematics ----------------- None Robot Schematics ------------------ None Fabricated ------------ Nothing Alien Tech Used ----------------- None Achievements -------------- None Challenges ------------ None Game ------ Seed PiercingChipLeg Manual? 0 Play Time 00:05:43 Cumulative 253.0 hours Start 2024.08.26 @ 22:03:05 End 2024.08.26 @ 22:11:54 Sessions 1 Manual Loads 0 Difficulty Rogue Special Mode None Game No. 474 Rogue 472 Adventurer 2 Explorer 0 Win Type - Total 14 Types 11/0/1/2/0/0/0/0/0 Lore% 74 Gallery% 68 Achievement% 57 Wizard Run 0 Options --------- Layout 0 ASCII 0 Keyboard 1 Movement Numpad Keybinds 1 Fullscreen 2 Font 18/SmallcapsGlow Map View 76x50 Zoom Use 0% Tactical HUD 1 Map Filters NONE Filters NONE Steam 1 RUN: 9168241b-1127-4c33-aa4f-3da7b4619e96